Workbook

Sheet Cover
D2: Fill in the YELLOW BOXES ONLY!
A3: Content Information
A4: Grade | B4: 6 | D4: Directions: Complete the cover page. Then, add your data to the appropriate teacher tab. As a team, review your SMART Goal, and begin examining student work for trends. After you've administered your CSA, update your data, and review the Post-Test tab.
A5: Subject | B5: English
A6: Standard | B6: W.3
A7: Learning Target | B7: I can plan for writing
A9: Team | D9: Assessment Plan | G9: Meeting Date
A10: Teacher 1 | B10: Burke | D10: Assessment | E10: Date | G10: Oct. 14
A11: Teacher 2 | B11: Glasford | D11: CFA 1 | E11: Oct. 13
A12: Teacher 3 | B12: Rau | D12: CFA 2 (optional) | E12: Oct. 20
A13: Teacher 4 | B13: Waltman | D13: CFA 3 (optional) | E13: Oct. 27
A14: Teacher 5 | D14: CSA | E14: Oct. 31
A15: Teacher 6 | D15: *Format dates like this: Oct. 15
A16: Teacher 7
A17: Teacher 8

Sheet SMART Goal
B3: Teacher | C3: # students | D3: # Prof. + | E3: CFA % Prof. + | F3: # Basic | G3: % Basic | H3: # BB | I3: % BB
B4: =IF(Cover!B10=0,"",Cover!B10) -> Burke | C4: =COUNTA('Teacher 1'!B5:B187) -> 11 | D4: =COUNTIF('Teacher 1'!C5:C187,">2.99") -> 4 | E4: =(D4/C4) -> 0.3636363636 | F4: =COUNTIF('Teacher 1'!C5:C187,"2") -> 5 | G4: =(F4/C4) -> 0.4545454545 | H4: =COUNTIF('Teacher 1'!C5:C187,"<1.01") -> 2 | I4: =(H4/C4) -> 0.1818181818
B5: =IF(Cover!B11=0,"",Cover!B11) -> Glasford | C5: =COUNTA('Teacher 2'!B5:B187) -> 11 | D5: =COUNTIF('Teacher 2'!C5:C187,">2.99") -> 1 | E5: =(D5/C5) -> 0.09090909091 | F5: =COUNTIF('Teacher 2'!C5:C187,"2") -> 8 | G5: =(F5/C5) -> 0.7272727273 | H5: =COUNTIF('Teacher 2'!C5:C187,"<1.01") -> 2 | I5: 0.1818181818
B6: =IF(Cover!B12=0,"",Cover!B12) -> Rau | C6: =COUNTA('Teacher 3'!B5:B187) -> 2 | D6: =COUNTIF('Teacher 3'!C5:C187,">2.99") -> 0 | E6: 0 | F6: =COUNTIF('Teacher 3'!C5:C187,"2") -> 0 | G6: 0 | H6: =COUNTIF('Teacher 3'!C5:C187,"<1.01") -> 2 | I6: 1
B7: =IF(Cover!B13=0,"",Cover!B13) -> Waltman | C7: =COUNTA('Teacher 4'!B5:B187) -> 2 | D7: =COUNTIF('Teacher 4'!C5:C187,">2.99") -> 0 | E7: 0 | F7: =COUNTIF('Teacher 4'!C5:C187,"2") -> 2 | G7: 1 | H7: =COUNTIF('Teacher 4'!C5:C187,"<1.01") -> 0 | I7: 0
B8: =IF(Cover!B14=0,"",Cover!B14) ->  | C8: =COUNTA('Teacher 5'!B5:B187) -> 0 | D8: =COUNTIF('Teacher 5'!C5:C187,">2.99") -> 0 | F8: =COUNTIF('Teacher 5'!C9:C191,"2") -> 0 | H8: =COUNTIF('Teacher 5'!C5:C187,"<1.01") -> 0
B9: =IF(Cover!B15=0,"",Cover!B15) ->  | C9: =COUNTA('Teacher 6'!B5:B187) -> 0 | D9: =COUNTIF('Teacher 6'!C5:C187,">2.99") -> 0 | F9: =COUNTIF('Teacher 6'!C10:C192,"2") -> 0 | H9: =COUNTIF('Teacher 6'!C5:C187,"<1.01") -> 0
B10: =IF(Cover!B16=0,"",Cover!B16) ->  | C10: =COUNTA('Teacher 7'!B5:B187) -> 0 | D10: =COUNTIF('Teacher 7'!C5:C187,">2.99") -> 0 | F10: =COUNTIF('Teacher 7'!C11:C193,"2") -> 0 | H10: =COUNTIF('Teacher 7'!C5:C187,"<1.01") -> 0
B11: =IF(Cover!B17=0,"",Cover!B17) ->  | C11: =COUNTA('Teacher 8'!B5:B187) -> 0 | D11: =COUNTIF('Teacher 8'!C5:C187,">2.99") -> 0 | F11: =COUNTIF('Teacher 8'!C12:C194,"2") -> 0 | H11: =COUNTIF('Teacher 8'!C5:C187,"<1.01") -> 0
B12: TEAM | C12: =SUM(C4:C11) -> 26 | D12: =SUM(D4:D11) -> 5 | E12: =(D12/C12) -> 0.1923076923 | F12: =SUM(F4:F11) -> 15 | G12: =(F12/C12) -> 0.5769230769 | H12: =SUM(H4:H11) -> 6 | I12: =(H12/C12) -> 0.2307692308
E13: =ROUND(MID(E12*100,1,5),0)&"%" -> 19%
B24: Grade | C24: =Cover!B4 -> 6 | E24: Standard | F24: =Cover!B6 -> W.3
B25: Subject | C25: =Cover!B5 -> English | E25: Learning Target | F25: =Cover!B7 -> I can plan for writing
B27: CSA Date | C27: =Cover!E14 -> Oct. 31 | E27: Fill in the YELLOW BOXES ONLY!
B29: # Advanced, Proficient, Basic | C29: =SUM(D12,F12) -> 20 | E29: # Below Basic | F29: =H12 -> 6 | H29: % Expected Proficiency | I29: =(C29/C12) -> 0.7692307692
I30: =ROUND(MID(I29*100,1,5),0)&"%" -> 77%
B32: SMART Goal Statement
B33: ="The percentage of grade "&C24&" "&C25&" students proficient or higher in "&F24&": "&F25&", will increase from "&E13&" to "&I30&" as measured by CSA on "&C27&"." -> The percentage of grade 6 English students proficient or higher in W.3: I can plan for writing, will increase from 19% to 77% as measured by CSA on Oct. 31.
B36: Next step:
B37: Examine student work. What strengths do you notice? Are there patterns of misconceptions with your Basic and Below Basic students? What strategies might you use to reteach?
B39: Notes
B45: Student Strengths
B51: Misconceptions
B59: Differentiation Strategies

Sheet Post-Test
B3: Teacher | C3: # students | D3: Avg. Growth | E3: # Prof. + | F3: CSA % Prof. + | G3: # Basic | H3: % Basic | I3: # BB | J3: % BB
B4: =IF(Cover!B10=0,"",Cover!B10) -> Burke | C4: =COUNTA('Teacher 1'!B5:B187) -> 11 | D4: ='Teacher 1'!G3 -> 1.111111111 | E4: =COUNTIF('Teacher 1'!F5:F187,">2.99") -> 9 | F4: =(E4/C4) -> 0.8181818182 | G4: =COUNTIF('Teacher 1'!F5:F187,"2") -> 2 | H4: =(G4/C4) -> 0.1818181818 | I4: =COUNTIF('Teacher 1'!F5:F187,"<1.01") -> 0 | J4: =(I4/C4) -> 0
B5: =IF(Cover!B11=0,"",Cover!B11) -> Glasford | C5: =COUNTA('Teacher 2'!B5:B187) -> 11 | D5: ='Teacher 2'!G3 -> 1.25 | E5: =COUNTIF('Teacher 2'!F5:F187,">2.99") -> 8 | F5: 0.7272727273 | G5: =COUNTIF('Teacher 2'!F5:F187,"2") -> 3 | H5: 0.2727272727 | I5: =COUNTIF('Teacher 2'!F5:F187,"<1.01") -> 0 | J5: 0
B6: =IF(Cover!B12=0,"",Cover!B12) -> Rau | C6: =COUNTA('Teacher 3'!B5:B187) -> 2 | D6: ='Teacher 3'!G3 -> 1.5 | E6: =COUNTIF('Teacher 3'!F5:F187,">2.99") -> 1 | F6: 0.5 | G6: =COUNTIF('Teacher 3'!F5:F187,"2") -> 1 | H6: 0.5 | I6: =COUNTIF('Teacher 3'!F5:F187,"<1.01") -> 0 | J6: 0
B7: =IF(Cover!B13=0,"",Cover!B13) -> Waltman | C7: =COUNTA('Teacher 4'!B5:B187) -> 2 | D7: ='Teacher 4'!G3 -> 1 | E7: =COUNTIF('Teacher 4'!F5:F187,">2.99") -> 2 | F7: 1 | G7: =COUNTIF('Teacher 4'!F5:F187,"2") -> 0 | H7: 0 | I7: =COUNTIF('Teacher 4'!F5:F187,"<1.01") -> 0 | J7: 0
B8: =IF(Cover!B14=0,"",Cover!B14) ->  | C8: =COUNTA('Teacher 5'!B5:B187) -> 0 | D8: ='Teacher 5'!G3 ->  | E8: =COUNTIF('Teacher 5'!F5:F187,">2.99") -> 0 | G8: =COUNTIF('Teacher 5'!F5:F187,"2") -> 0 | I8: =COUNTIF('Teacher 5'!F5:F187,"<1.01") -> 0
B9: =IF(Cover!B15=0,"",Cover!B15) ->  | C9: =COUNTA('Teacher 6'!B5:B187) -> 0 | D9: ='Teacher 6'!G3 ->  | E9: =COUNTIF('Teacher 6'!F5:F187,">2.99") -> 0 | G9: =COUNTIF('Teacher 6'!F5:F187,"2") -> 0 | I9: =COUNTIF('Teacher 6'!F5:F187,"<1.01") -> 0
B10: =IF(Cover!B16=0,"",Cover!B16) ->  | C10: =COUNTA('Teacher 7'!B5:B187) -> 0 | D10: ='Teacher 7'!G3 ->  | E10: =COUNTIF('Teacher 7'!F5:F187,">2.99") -> 0 | G10: =COUNTIF('Teacher 7'!F5:F187,"2") -> 0 | I10: =COUNTIF('Teacher 7'!F5:F187,"<1.01") -> 0
B11: =IF(Cover!B17=0,"",Cover!B17) ->  | C11: =COUNTA('Teacher 8'!B5:B187) -> 0 | D11: ='Teacher 8'!G3 ->  | E11: =COUNTIF('Teacher 8'!F5:F187,">2.99") -> 0 | G11: =COUNTIF('Teacher 8'!F5:F187,"2") -> 0 | I11: =COUNTIF('Teacher 8'!F5:F187,"<1.01") -> 0
B12: TEAM | C12: =SUM(C4:C11) -> 26 | D12: =AVERAGEIF(D4:D11,"<>#DIV/0!") -> 1.215277778 | E12: =SUM(E4:E11) -> 20 | F12: =(E12/C12) -> 0.7692307692 | G12: =SUM(G4:G11) -> 6 | H12: =(G12/C12) -> 0.2307692308 | I12: =SUM(I4:I11) -> 0 | J12: =(I12/C12) -> 0
C14: SMART Goal | E14: ='SMART Goal'!I29 -> 0.7692307692 | G14: Goal met? | I14: =IF(F12<E14,"NO","YES") -> YES

Sheet Teacher 1
A1: Teacher | B1: =Cover!B10 -> Burke | C1: Grade | D1: =Cover!B4 -> 6 | E1: Subject | F1: =Cover!B5 -> English | G1: Standard | H1: =Cover!B6 -> W.3 | I1: Learning Target | J1: =Cover!B7 -> I can plan for writing
B3: Class Average | C3: =AVERAGE(C5:C187) -> 2.181818182 | D3: =AVERAGE(D5:D187) -> 2.285714286 | E3: =AVERAGE(E5:E187) -> 2.6 | F3: =AVERAGE(F5:F187) -> 3.090909091 | G3: =AVERAGE(G5:G187) -> 1.111111111
A4: Pd. | B4: Student Names | C4: CFA 1 | D4: CFA 2 | E4: CFA 3 | F4: CSA | G4: Growth
B5: A | C5: 2 | D5: 3 | F5: 4 | G5: =IF((F5-C5)=0, "",(F5-C5)) -> 2 | I5: Fill in the YELLOW BOXES ONLY!
B6: B | C6: 2 | D6: 2 | E6: 3 | F6: 3 | G6: =IF((F6-C6)=0, "",(F6-C6)) -> 1
B7: C | C7: 2 | D7: 2 | E7: 3 | F7: 3 | G7: 1 | I7: Scores should be entered using the following scale:
B8: D | C8: 3 | F8: 4 | G8: 1
B9: E | C9: 3 | F9: 3
B10: F | C10: 2 | D10: 3 | F10: 3 | G10: 1 | I10: 4 - Advanced
B11: G | C11: 1 | D11: 2 | E11: 2 | F11: 2 | G11: 1 | I11: 3 - Proficient
B12: H | C12: 1 | D12: 2 | E12: 2 | F12: 2 | G12: 1 | I12: 2 - Basic/Approaching
B13: I | C13: 2 | D13: 2 | E13: 3 | F13: 3 | G13: 1 | I13: 1 - Below Basic/Emerging
B14: J | C14: 3 | F14: 3
B15: K | C15: 3 | F15: 4 | G15: 1
G70: =IF((F70-C70)=0, "",(F70-C70)) -> 
G134: =IF((F134-C134)=0, "",(F134-C134)) -> 

Sheet Teacher 2
A1: Teacher | B1: =Cover!B11 -> Glasford | C1: Grade | D1: =Cover!B4 -> 6 | E1: Subject | F1: =Cover!B5 -> English | G1: Standard | H1: =Cover!B6 -> W.3 | I1: Learning Target | J1: =Cover!B7 -> I can plan for writing
B3: Class Average | C3: =AVERAGE(C5:C187) -> 1.909090909 | D3: =AVERAGE(D5:D187) -> 2.4 | E3: =AVERAGE(E5:E187) -> 2.4 | F3: =AVERAGE(F5:F187) -> 2.818181818 | G3: =AVERAGE(G5:G187) -> 1.25
A4: Pd. | B4: Student Names | C4: CFA 1 | D4: CFA 2 | E4: CFA 3 | F4: CSA | G4: Growth
B5: L | C5: 2 | D5: 2 | E5: 3 | F5: 3 | G5: =IF((F5-C5)=0, "",(F5-C5)) -> 1 | I5: Fill in the YELLOW BOXES ONLY!
B6: M | C6: 2 | D6: 3 | F6: 3 | G6: =IF((F6-C6)=0, "",(F6-C6)) -> 1
B7: N | C7: 2 | D7: 3 | F7: 4 | G7: 2 | I7: Scores should be entered using the following scale:
B8: O | C8: 2 | D8: 2 | E8: 2 | F8: 2
B9: P | C9: 3 | F9: 3
B10: Q | C10: 2 | D10: 2 | E10: 3 | F10: 3 | G10: 1 | I10: 4 - Advanced
B11: R | C11: 2 | D11: 3 | F11: 3 | G11: 1 | I11: 3 - Proficient
B12: S | C12: 2 | D12: 3 | F12: 2 | I12: 2 - Basic/Approaching
B13: T | C13: 2 | D13: 3 | F13: 3 | G13: 1 | I13: 1 - Below Basic/Emerging
B14: U | C14: 1 | D14: 2 | E14: 2 | F14: 2 | G14: 1
B15: V | C15: 1 | D15: 1 | E15: 2 | F15: 3 | G15: 2
G70: =IF((F70-C70)=0, "",(F70-C70)) -> 
G134: =IF((F134-C134)=0, "",(F134-C134)) -> 

Sheet Teacher 3
A1: Teacher | B1: =Cover!B12 -> Rau | C1: Grade | D1: =Cover!B4 -> 6 | E1: Subject | F1: =Cover!B5 -> English | G1: Standard | H1: =Cover!B6 -> W.3 | I1: Learning Target | J1: =Cover!B7 -> I can plan for writing
B3: Class Average | C3: =AVERAGE(C5:C187) -> 1 | D3: =AVERAGE(D5:D187) -> 1 | E3: =AVERAGE(E5:E187) -> 2 | F3: =AVERAGE(F5:F187) -> 2.5 | G3: =AVERAGE(G5:G187) -> 1.5
A4: Pd. | B4: Student Names | C4: CFA 1 | D4: CFA 2 | E4: CFA 3 | F4: CSA | G4: Growth
B5: W | C5: 1 | D5: 1 | E5: 2 | F5: 3 | G5: =IF((F5-C5)=0, "",(F5-C5)) -> 2 | I5: Fill in the YELLOW BOXES ONLY!
B6: X | C6: 1 | D6: 1 | E6: 2 | F6: 2 | G6: =IF((F6-C6)=0, "",(F6-C6)) -> 1
I7: Scores should be entered using the following scale:
I10: 4 - Advanced
I11: 3 - Proficient
I12: 2 - Basic/Approaching
I13: 1 - Below Basic/Emerging
G70: =IF((F70-C70)=0, "",(F70-C70)) -> 
G134: =IF((F134-C134)=0, "",(F134-C134)) -> 

Sheet Teacher 4
A1: Teacher | B1: =Cover!B13 -> Waltman | C1: Grade | D1: =Cover!B4 -> 6 | E1: Subject | F1: =Cover!B5 -> English | G1: Standard | H1: =Cover!B6 -> W.3 | I1: Learning Target | J1: =Cover!B7 -> I can plan for writing
B3: Class Average | C3: =AVERAGE(C5:C187) -> 2 | D3: =AVERAGE(D5:D187) -> 2 | E3: =AVERAGE(E5:E187) -> 2.5 | F3: =AVERAGE(F5:F187) -> 3 | G3: =AVERAGE(G5:G187) -> 1
A4: Pd. | B4: Student Names | C4: CFA 1 | D4: CFA 2 | E4: CFA 3 | F4: CSA | G4: Growth
B5: Y | C5: 2 | D5: 2 | E5: 3 | F5: 3 | G5: =IF((F5-C5)=0, "",(F5-C5)) -> 1 | I5: Fill in the YELLOW BOXES ONLY!
B6: Z | C6: 2 | D6: 2 | E6: 2 | F6: 3 | G6: =IF((F6-C6)=0, "",(F6-C6)) -> 1
I7: Scores should be entered using the following scale:
I10: 4 - Advanced
I11: 3 - Proficient
I12: 2 - Basic/Approaching
I13: 1 - Below Basic/Emerging
G70: =IF((F70-C70)=0, "",(F70-C70)) -> 
G134: =IF((F134-C134)=0, "",(F134-C134)) -> 

Sheet Teacher 5
A1: Teacher | B1: =Cover!B14 -> 0 | C1: Grade | D1: =Cover!B4 -> 6 | E1: Subject | F1: =Cover!B5 -> English | G1: Standard | H1: =Cover!B6 -> W.3 | I1: Learning Target | J1: =Cover!B7 -> I can plan for writing
B3: Class Average | C3: =AVERAGE(C5:C187) ->  | D3: =AVERAGE(D5:D187) ->  | E3: =AVERAGE(E5:E187) ->  | F3: =AVERAGE(F5:F187) ->  | G3: =AVERAGE(G5:G187) -> 
A4: Pd. | B4: Student Names | C4: CFA 1 | D4: CFA 2 | E4: CFA 3 | F4: CSA | G4: Growth
G5: =IF((F5-C5)=0, "",(F5-C5)) ->  | I5: Fill in the YELLOW BOXES ONLY!
G6: =IF((F6-C6)=0, "",(F6-C6)) -> 
I7: Scores should be entered using the following scale:
I10: 4 - Advanced
I11: 3 - Proficient
I12: 2 - Basic/Approaching
I13: 1 - Below Basic/Emerging
G70: =IF((F70-C70)=0, "",(F70-C70)) -> 
G134: =IF((F134-C134)=0, "",(F134-C134)) -> 

Sheet Teacher 6
A1: Teacher | B1: =Cover!B15 -> 0 | C1: Grade | D1: =Cover!B4 -> 6 | E1: Subject | F1: =Cover!B5 -> English | G1: Standard | H1: =Cover!B6 -> W.3 | I1: Learning Target | J1: =Cover!B7 -> I can plan for writing
B3: Class Average | C3: =AVERAGE(C5:C187) ->  | D3: =AVERAGE(D5:D187) ->  | E3: =AVERAGE(E5:E187) ->  | F3: =AVERAGE(F5:F187) ->  | G3: =AVERAGE(G5:G187) -> 
A4: Pd. | B4: Student Names | C4: CFA 1 | D4: CFA 2 | E4: CFA 3 | F4: CSA | G4: Growth
G5: =IF((F5-C5)=0, "",(F5-C5)) ->  | I5: Fill in the YELLOW BOXES ONLY!
G6: =IF((F6-C6)=0, "",(F6-C6)) -> 
I7: Scores should be entered using the following scale:
I10: 4 - Advanced
I11: 3 - Proficient
I12: 2 - Basic/Approaching
I13: 1 - Below Basic/Emerging
G70: =IF((F70-C70)=0, "",(F70-C70)) -> 
G134: =IF((F134-C134)=0, "",(F134-C134)) -> 

Sheet Teacher 7
A1: Teacher | B1: =Cover!B16 -> 0 | C1: Grade | D1: =Cover!B4 -> 6 | E1: Subject | F1: =Cover!B5 -> English | G1: Standard | H1: =Cover!B6 -> W.3 | I1: Learning Target | J1: =Cover!B7 -> I can plan for writing
B3: Class Average | C3: =AVERAGE(C5:C187) ->  | D3: =AVERAGE(D5:D187) ->  | E3: =AVERAGE(E5:E187) ->  | F3: =AVERAGE(F5:F187) ->  | G3: =AVERAGE(G5:G187) -> 
A4: Pd. | B4: Student Names | C4: CFA 1 | D4: CFA 2 | E4: CFA 3 | F4: CSA | G4: Growth
G5: =IF((F5-C5)=0, "",(F5-C5)) ->  | I5: Fill in the YELLOW BOXES ONLY!
G6: =IF((F6-C6)=0, "",(F6-C6)) -> 
I7: Scores should be entered using the following scale:
I10: 4 - Advanced
I11: 3 - Proficient
I12: 2 - Basic/Approaching
I13: 1 - Below Basic/Emerging
G70: =IF((F70-C70)=0, "",(F70-C70)) -> 
G134: =IF((F134-C134)=0, "",(F134-C134)) -> 

Sheet Teacher 8
A1: Teacher | B1: =Cover!B17 -> 0 | C1: Grade | D1: =Cover!B4 -> 6 | E1: Subject | F1: =Cover!B5 -> English | G1: Standard | H1: =Cover!B6 -> W.3 | I1: Learning Target | J1: =Cover!B7 -> I can plan for writing
B3: Class Average | C3: =AVERAGE(C5:C187) ->  | D3: =AVERAGE(D5:D187) ->  | E3: =AVERAGE(E5:E187) ->  | F3: =AVERAGE(F5:F187) ->  | G3: =AVERAGE(G5:G187) -> 
A4: Pd. | B4: Student Names | C4: CFA 1 | D4: CFA 2 | E4: CFA 3 | F4: CSA | G4: Growth
G5: =IF((F5-C5)=0, "",(F5-C5)) ->  | I5: Fill in the YELLOW BOXES ONLY!
G6: =IF((F6-C6)=0, "",(F6-C6)) -> 
I7: Scores should be entered using the following scale:
I10: 4 - Advanced
I11: 3 - Proficient
I12: 2 - Basic/Approaching
I13: 1 - Below Basic/Emerging
G70: =IF((F70-C70)=0, "",(F70-C70)) -> 
G134: =IF((F134-C134)=0, "",(F134-C134)) -> 

Sheet Graphs
